[Event "2026 Biel Blitz Open"]
[Site "Biel, CH"]
[Date "2026.07.19"]
[Round "9"]
[White "Draude, Theo"]
[Black "Chu, Wa Ching David"]
[Result "0-1"]
[Board "47"]
[TimeControl "180+2"]
[WhiteFideId "34623809"]
[BlackFideId "6013180"]
[WhiteElo "1861"]
[BlackElo "1673"]
[WhiteClock "0:00:07"]
[BlackClock "0:00:09"]
[Variant "Standard"]
[EndDate "2026.07.19"]
[EndTime "14:43:39"]

1. e4 {[%clk 0:03:03]}  c5 {[%clk 0:03:03]} 2. Nf3 {[%clk 0:03:04]}  d6 {[%clk 0:03:04]} 3. d4 {[%clk 0:03:06]}  cxd4 {[%clk 0:03:05]}
4. Nxd4 {[%clk 0:03:07]}  Nf6 {[%clk 0:03:06]} 5. Nc3 {[%clk 0:03:09]}  g6 {[%clk 0:03:07]} 6. Be3 {[%clk 0:03:09]}  Bg7 {[%clk 0:03:07]}
7. f3 {[%clk 0:03:10]}  O-O {[%clk 0:03:07]} 8. Qd2 {[%clk 0:03:11]}  Nc6 {[%clk 0:03:09]} 9. O-O-O {[%clk 0:03:06]}  d5 {[%clk 0:03:10]}
10. Nxc6 {[%clk 0:03:07]}  bxc6 {[%clk 0:03:11]} 11. Bc4 {[%clk 0:03:08]}  e6 {[%clk 0:03:06]} 12. Bb3 {[%clk 0:03:04]}  Bb7 {[%clk 0:03:00]}
13. Na4 {[%clk 0:02:56]}  Qc7 {[%clk 0:02:22]} 14. Nc5 {[%clk 0:02:54]}  Rfd8 {[%clk 0:02:14]} 15. Qe2 {[%clk 0:01:35]}  Nd7 {[%clk 0:01:42]}
16. Rhe1 {[%clk 0:01:21]}  dxe4 {[%clk 0:01:03]} 17. Nxe4 {[%clk 0:01:02]}  Nb6 {[%clk 0:00:59]} 18. Bg5 {[%clk 0:00:49]}  Rxd1+ {[%clk 0:00:47]}
19. Rxd1 {[%clk 0:00:48]}  Qe5 {[%clk 0:00:38]} 20. h4 {[%clk 0:00:19]}  Qxb2+ {[%clk 0:00:26]} 21. Kd2 {[%clk 0:00:21]}  f6 {[%clk 0:00:22]}
22. Bxe6+ {[%clk 0:00:14]}  Kh8 {[%clk 0:00:22]} 23. Be3 {[%clk 0:00:11]}  f5 {[%clk 0:00:17]} 24. Ke1 {[%clk 0:00:03]}  fxe4 {[%clk 0:00:16]}
25. fxe4 {[%clk 0:00:05]}  Rf8 {[%clk 0:00:13]} 26. Rd6 {[%clk 0:00:05]}  Qb4+ {[%clk 0:00:10]} 27. Rd2 {[%clk 0:00:06]}  Bc3 {[%clk 0:00:09]}
28. Bd4+ {[%clk 0:00:07]}  Bxd4 {[%clk 0:00:09]} 0-1

[Event "2026 Biel Blitz Open"]
[Site "Biel, CH"]
[Date "2026.07.19"]
[Round "9"]
[White "Koehler, Noe"]
[Black "Berezovskii, Arina"]
[Result "1/2-1/2"]
[Board "49"]
[TimeControl "180+2"]
[WhiteFideId "1362488"]
[BlackFideId "34449850"]
[WhiteElo "1639"]
[BlackElo "1851"]
[BlackTitle "WCM"]
[WhiteClock "0:00:09"]
[BlackClock "0:00:15"]
[Variant "Standard"]
[EndDate "2026.07.19"]
[EndTime "14:40:42"]

1. Nf3 {[%clk 0:03:03]}  Nf6 {[%clk 0:03:03]} 2. b3 {[%clk 0:03:05]}  b6 {[%clk 0:03:02]} 3. Bb2 {[%clk 0:03:05]}  Bb7 {[%clk 0:03:03]}
4. e3 {[%clk 0:03:05]}  g6 {[%clk 0:02:59]} 5. Be2 {[%clk 0:03:06]}  Bg7 {[%clk 0:03:00]} 6. O-O {[%clk 0:03:06]}  O-O {[%clk 0:03:00]}
7. c4 {[%clk 0:03:07]}  c5 {[%clk 0:02:59]} 8. d3 {[%clk 0:03:07]}  e6 {[%clk 0:02:47]} 9. Nbd2 {[%clk 0:03:07]}  d5 {[%clk 0:02:48]}
10. cxd5 {[%clk 0:03:01]}  exd5 {[%clk 0:02:34]} 11. d4 {[%clk 0:02:56]}  Ne4 {[%clk 0:02:12]} 12. Rb1 {[%clk 0:02:46]}  Nd7 {[%clk 0:02:06]}
13. dxc5 {[%clk 0:02:44]}  Bxb2 {[%clk 0:02:05]} 14. Rxb2 {[%clk 0:02:45]}  Ndxc5 {[%clk 0:01:49]} 15. Rc2 {[%clk 0:02:23]}  Qf6 {[%clk 0:01:37]}
16. Nd4 {[%clk 0:02:20]}  Rac8 {[%clk 0:01:30]} 17. N2f3 {[%clk 0:02:20]}  Ne6 {[%clk 0:01:24]} 18. Nxe6 {[%clk 0:01:51]}  fxe6 {[%clk 0:01:23]}
19. Rxc8 {[%clk 0:01:03]}  Rxc8 {[%clk 0:01:24]} 20. Qd4 {[%clk 0:01:04]}  Qxd4 {[%clk 0:01:10]} 21. Nxd4 {[%clk 0:01:05]}  e5 {[%clk 0:01:09]}
22. Nf3 {[%clk 0:01:06]}  Rc2 {[%clk 0:01:07]} 23. Bd3 {[%clk 0:00:49]}  Rxa2 {[%clk 0:00:58]} 24. Bxe4 {[%clk 0:00:50]}  dxe4 {[%clk 0:00:58]}
25. Nxe5 {[%clk 0:00:51]}  Rb2 {[%clk 0:00:45]} 26. h4 {[%clk 0:00:28]}  Rxb3 {[%clk 0:00:36]} 27. Rc1 {[%clk 0:00:29]}  Bd5 {[%clk 0:00:19]}
28. Rc7 {[%clk 0:00:26]}  a5 {[%clk 0:00:16]} 29. Rd7 {[%clk 0:00:20]}  Be6 {[%clk 0:00:14]} 30. Rd6 {[%clk 0:00:21]}  Bf5 {[%clk 0:00:03]}
31. g4 {[%clk 0:00:18]}  Rb5 {[%clk 0:00:05]} 32. gxf5 {[%clk 0:00:16]}  Rxe5 {[%clk 0:00:06]} 33. fxg6 {[%clk 0:00:17]}  hxg6 {[%clk 0:00:07]}
34. Rxg6+ {[%clk 0:00:18]}  Kh7 {[%clk 0:00:06]} 35. Rxb6 {[%clk 0:00:19]}  Rh5 {[%clk 0:00:05]} 36. Ra6 {[%clk 0:00:16]}  Rxh4 {[%clk 0:00:04]}
37. Rxa5 {[%clk 0:00:17]}  Kg6 {[%clk 0:00:03]} 38. Kg2 {[%clk 0:00:18]}  Kf6 {[%clk 0:00:03]} 39. Kg3 {[%clk 0:00:17]}  Rh1 {[%clk 0:00:04]}
40. Kf4 {[%clk 0:00:13]}  Rh4+ {[%clk 0:00:05]} 41. Kg3 {[%clk 0:00:11]}  Rh8 {[%clk 0:00:05]} 42. Kf4 {[%clk 0:00:07]}  Rh4+ {[%clk 0:00:06]}
43. Kg3 {[%clk 0:00:09]}  Rh8 {[%clk 0:00:07]} 44. Ra4 {[%clk 0:00:06]}  Kf5 {[%clk 0:00:07]} 45. Ra5+ {[%clk 0:00:06]}  Kf6 {[%clk 0:00:08]}
46. f4 {[%clk 0:00:05]}  exf3 {[%clk 0:00:08]} 47. Kxf3 {[%clk 0:00:06]}  Rh3+ {[%clk 0:00:08]} 48. Ke4 {[%clk 0:00:06]}  Rh4+ {[%clk 0:00:08]}
49. Kd3 {[%clk 0:00:07]}  Rh3 {[%clk 0:00:07]} 50. Ra4 {[%clk 0:00:05]}  Ke6 {[%clk 0:00:07]} 51. Re4+ {[%clk 0:00:05]}  Kd6 {[%clk 0:00:08]}
52. Rf4 {[%clk 0:00:05]}  Ke6 {[%clk 0:00:06]} 53. Ke4 {[%clk 0:00:06]}  Rg3 {[%clk 0:00:06]} 54. Rh4 {[%clk 0:00:04]}  Rg1 {[%clk 0:00:05]}
55. Rh6+ {[%clk 0:00:05]}  Ke7 {[%clk 0:00:06]} 56. Ke5 {[%clk 0:00:06]}  Re1 {[%clk 0:00:07]} 57. e4 {[%clk 0:00:08]}  Rb1 {[%clk 0:00:07]}
58. Rh7+ {[%clk 0:00:09]}  Ke8 {[%clk 0:00:07]} 59. Ke6 {[%clk 0:00:08]}  Rb6+ {[%clk 0:00:08]} 60. Kf5 {[%clk 0:00:08]}  Rc6 {[%clk 0:00:08]}
61. e5 {[%clk 0:00:09]}  Rb6 {[%clk 0:00:09]} 62. e6 {[%clk 0:00:09]}  Rb1 {[%clk 0:00:10]} 63. Kf6 {[%clk 0:00:03]}  Rf1+ {[%clk 0:00:10]}
64. Ke5 {[%clk 0:00:04]}  Re1+ {[%clk 0:00:11]} 65. Kd5 {[%clk 0:00:05]}  Rd1+ {[%clk 0:00:12]} 66. Ke5 {[%clk 0:00:06]}  Re1+ {[%clk 0:00:13]}
67. Kf6 {[%clk 0:00:08]}  Rf1+ {[%clk 0:00:14]} 68. Kg6 {[%clk 0:00:07]}  Rg1+ {[%clk 0:00:15]} 69. Kf6 {[%clk 0:00:09]} 1/2-1/2

[Event "2026 Biel Blitz Open"]
[Site "Biel, CH"]
[Date "2026.07.19"]
[Round "9"]
[White "Aryan Mehta"]
[Black "Zumbrunn, Simon"]
[Result "0-1"]
[Board "51"]
[TimeControl "180+2"]
[WhiteFideId "33329664"]
[BlackFideId "1364146"]
[WhiteElo "2061"]
[BlackElo "1802"]
[WhiteClock "0:00:05"]
[BlackClock "0:00:57"]
[Variant "Standard"]
[EndDate "2026.07.19"]
[EndTime "14:47:14"]

1. d4 {[%clk 0:03:04]}  Nf6 {[%clk 0:03:03]} 2. c4 {[%clk 0:03:05]}  c5 {[%clk 0:03:05]} 3. d5 {[%clk 0:03:06]}  g6 {[%clk 0:03:06]}
4. Nc3 {[%clk 0:03:08]}  Bg7 {[%clk 0:03:08]} 5. e4 {[%clk 0:03:09]}  d6 {[%clk 0:03:09]} 6. f4 {[%clk 0:03:09]}  O-O {[%clk 0:03:09]}
7. Nf3 {[%clk 0:03:10]}  Bg4 {[%clk 0:03:10]} 8. Bd3 {[%clk 0:03:11]}  a6 {[%clk 0:03:04]} 9. a4 {[%clk 0:03:11]}  e6 {[%clk 0:03:01]}
10. O-O {[%clk 0:03:11]}  exd5 {[%clk 0:03:02]} 11. cxd5 {[%clk 0:03:12]}  Re8 {[%clk 0:03:00]} 12. h3 {[%clk 0:03:13]}  Bxf3 {[%clk 0:02:55]}
13. Qxf3 {[%clk 0:03:14]}  Nbd7 {[%clk 0:02:53]} 14. Be3 {[%clk 0:03:14]}  Rc8 {[%clk 0:02:48]} 15. Rae1 {[%clk 0:03:03]}  c4 {[%clk 0:02:49]}
16. Bc2 {[%clk 0:03:04]}  Nc5 {[%clk 0:02:46]} 17. Bd4 {[%clk 0:03:04]}  Nfd7 {[%clk 0:02:16]} 18. Bxg7 {[%clk 0:03:02]}  Kxg7 {[%clk 0:02:16]}
19. Re2 {[%clk 0:02:41]}  Qf6 {[%clk 0:02:16]} 20. g4 {[%clk 0:02:32]}  Qd4+ {[%clk 0:02:17]} 21. Kh1 {[%clk 0:02:28]}  Nd3 {[%clk 0:02:14]}
22. Rd1 {[%clk 0:02:23]}  N7c5 {[%clk 0:02:12]} 23. Bb1 {[%clk 0:01:55]}  Qf6 {[%clk 0:02:13]} 24. Rf1 {[%clk 0:01:50]}  Rb8 {[%clk 0:02:09]}
25. Qg2 {[%clk 0:01:25]}  Qh4 {[%clk 0:02:08]} 26. e5 {[%clk 0:01:13]}  dxe5 {[%clk 0:02:02]} 27. f5 {[%clk 0:01:14]}  e4 {[%clk 0:01:54]}
28. Kh2 {[%clk 0:00:47]}  Qd8 {[%clk 0:01:31]} 29. Qg1 {[%clk 0:00:27]}  Qd6+ {[%clk 0:01:29]} 30. Kh1 {[%clk 0:00:28]}  b5 {[%clk 0:01:22]}
31. axb5 {[%clk 0:00:25]}  axb5 {[%clk 0:01:23]} 32. Qd4+ {[%clk 0:00:23]}  Qe5 {[%clk 0:01:24]} 33. Qe3 {[%clk 0:00:20]}  b4 {[%clk 0:01:20]}
34. f6+ {[%clk 0:00:21]}  Kh8 {[%clk 0:01:18]} 35. Qh6 {[%clk 0:00:20]}  Rg8 {[%clk 0:01:13]} 36. Nd1 {[%clk 0:00:09]}  g5 {[%clk 0:01:14]}
37. Rf5 {[%clk 0:00:08]}  Qg3 {[%clk 0:01:13]} 38. Rg2 {[%clk 0:00:05]}  Qe1+ {[%clk 0:01:11]} 39. Rg1 {[%clk 0:00:06]}  Qe2 {[%clk 0:01:01]}
40. Rxg5 {[%clk 0:00:05]}  Rxg5 {[%clk 0:01:01]} 41. Qxg5 {[%clk 0:00:06]}  Rg8 {[%clk 0:01:02]} 42. Qh6 {[%clk 0:00:06]}  Nf2+ {[%clk 0:00:58]}
43. Nxf2 {[%clk 0:00:06]}  Qxf2 {[%clk 0:00:59]} 44. g5 {[%clk 0:00:05]}  Qf3+ {[%clk 0:01:00]} 45. Kh2 {[%clk 0:00:06]}  Qf4+ {[%clk 0:01:01]}
46. Kh1 {[%clk 0:00:07]}  Qf3+ {[%clk 0:00:57]} 47. Kh2 {[%clk 0:00:08]}  Nd3 {[%clk 0:00:58]} 48. Bxd3 {[%clk 0:00:05]}  Qf4+ {[%clk 0:00:57]}
49. Kh1 {[%clk 0:00:06]}  cxd3 {[%clk 0:00:58]} 50. Rg4 {[%clk 0:00:03]}  Qe3 {[%clk 0:00:57]} 51. Kh2 {[%clk 0:00:05]} 0-1

[Event "2026 Biel Blitz Open"]
[Site "Biel, CH"]
[Date "2026.07.19"]
[Round "9"]
[White "Filimonov, Arsenii"]
[Black "Mikavica, Mirko"]
[Result "1-0"]
[Board "52"]
[TimeControl "180+2"]
[WhiteFideId "34171584"]
[BlackFideId "908657"]
[WhiteElo "1735"]
[BlackElo "2015"]
[WhiteClock "0:00:36"]
[BlackClock "0:00:06"]
[Variant "Standard"]
[EndDate "2026.07.19"]
[EndTime "14:38:06"]

1. e4 {[%clk 0:03:03]}  d6 {[%clk 0:03:04]} 2. d4 {[%clk 0:03:04]}  Nf6 {[%clk 0:03:05]} 3. Nc3 {[%clk 0:03:05]}  Nbd7 {[%clk 0:03:07]}
4. Nf3 {[%clk 0:03:05]}  e5 {[%clk 0:03:08]} 5. Bc4 {[%clk 0:03:05]}  Be7 {[%clk 0:03:05]} 6. O-O {[%clk 0:03:02]}  O-O {[%clk 0:03:06]}
7. Re1 {[%clk 0:03:04]}  c6 {[%clk 0:03:07]} 8. a4 {[%clk 0:03:02]}  a5 {[%clk 0:03:06]} 9. Qe2 {[%clk 0:02:47]}  Qc7 {[%clk 0:03:06]}
10. h3 {[%clk 0:02:37]}  Nb6 {[%clk 0:02:51]} 11. Bb3 {[%clk 0:02:38]}  Nfd7 {[%clk 0:02:26]} 12. Be3 {[%clk 0:02:31]}  exd4 {[%clk 0:02:24]}
13. Nxd4 {[%clk 0:02:32]}  Nc5 {[%clk 0:02:23]} 14. Rad1 {[%clk 0:02:18]}  Be6 {[%clk 0:02:22]} 15. Nxe6 {[%clk 0:02:18]}  Nxe6 {[%clk 0:02:14]}
16. Qg4 {[%clk 0:02:11]}  Nc5 {[%clk 0:01:10]} 17. f4 {[%clk 0:01:32]}  Nxb3 {[%clk 0:01:03]} 18. cxb3 {[%clk 0:01:33]}  Bf6 {[%clk 0:00:55]}
19. Bd4 {[%clk 0:01:25]}  Bxd4+ {[%clk 0:00:39]} 20. Rxd4 {[%clk 0:01:24]}  Nd7 {[%clk 0:00:39]} 21. Red1 {[%clk 0:01:13]}  Nf6 {[%clk 0:00:37]}
22. Qf5 {[%clk 0:01:03]}  Qb6 {[%clk 0:00:34]} 23. Kh2 {[%clk 0:00:51]}  Qxb3 {[%clk 0:00:23]} 24. Rxd6 {[%clk 0:00:50]}  Qxb2 {[%clk 0:00:16]}
25. R1d3 {[%clk 0:00:39]}  Rae8 {[%clk 0:00:06]} 26. Rxf6 {[%clk 0:00:36]}  Qc2 {[%clk 0:00:06]} 27. Rh6 {[%clk 0:00:21]}  Qxd3 {[%clk 0:00:00]}
28. Qxh7# {[%clk 0:00:36]} 1-0

[Event "2026 Biel Blitz Open"]
[Site "Biel, CH"]
[Date "2026.07.19"]
[Round "9"]
[White "Mintz, Nathan"]
[Black "Jud, Marc"]
[Result "1/2-1/2"]
[Board "54"]
[TimeControl "180+2"]
[WhiteFideId "30995540"]
[BlackFideId "1309099"]
[WhiteElo "1608"]
[BlackElo "1946"]
[WhiteClock "0:01:55"]
[BlackClock "0:02:17"]
[Variant "Standard"]
[EndDate "2026.07.19"]
[EndTime "14:43:17"]

1. e4 {[%clk 0:03:03]}  c5 {[%clk 0:03:02]} 2. c3 {[%clk 0:03:03]}  d5 {[%clk 0:03:02]} 3. exd5 {[%clk 0:03:03]}  Qxd5 {[%clk 0:03:05]}
4. d4 {[%clk 0:02:58]}  cxd4 {[%clk 0:03:06]} 5. cxd4 {[%clk 0:02:58]}  e6 {[%clk 0:03:07]} 6. Nc3 {[%clk 0:02:55]}  Qd8 {[%clk 0:03:09]}
7. Nf3 {[%clk 0:02:53]}  Nf6 {[%clk 0:03:10]} 8. Bg5 {[%clk 0:02:50]}  Be7 {[%clk 0:03:11]} 9. Bc4 {[%clk 0:02:41]}  O-O {[%clk 0:03:01]}
10. O-O {[%clk 0:02:41]}  Nc6 {[%clk 0:03:02]} 11. Rc1 {[%clk 0:02:32]}  Bd7 {[%clk 0:02:48]} 12. Ne5 {[%clk 0:02:21]}  Rc8 {[%clk 0:02:36]}
13. Bb3 {[%clk 0:02:20]}  Be8 {[%clk 0:02:35]} 14. Be3 {[%clk 0:02:14]}  a6 {[%clk 0:02:17]} 15. Nxc6 {[%clk 0:01:55]}  Bxc6 {[%clk 0:02:17]} 1/2-1/2

[Event "2026 Biel Blitz Open"]
[Site "Biel, CH"]
[Date "2026.07.19"]
[Round "10"]
[White "Mohammad Nubairshah Shaikh"]
[Black "Bu, Xiangzhi"]
[Result "1/2-1/2"]
[Board "1"]
[TimeControl "180+2"]
[WhiteFideId "5053196"]
[BlackFideId "8601445"]
[WhiteElo "2316"]
[BlackElo "2719"]
[WhiteTitle "IM"]
[BlackTitle "GM"]
[WhiteClock "0:00:07"]
[BlackClock "0:00:08"]
[Variant "Standard"]
[EndDate "2026.07.19"]
[EndTime "15:01:08"]

1. Nf3 {[%clk 0:03:03]}  d5 {[%clk 0:03:04]} 2. g3 {[%clk 0:03:04]}  c6 {[%clk 0:03:05]} 3. c4 {[%clk 0:03:04]}  Nf6 {[%clk 0:03:06]}
4. Bg2 {[%clk 0:03:01]}  Bg4 {[%clk 0:03:07]} 5. Qb3 {[%clk 0:02:43]}  Qb6 {[%clk 0:03:03]} 6. d3 {[%clk 0:02:16]}  Nbd7 {[%clk 0:02:49]}
7. Nc3 {[%clk 0:02:16]}  dxc4 {[%clk 0:02:46]} 8. Qxc4 {[%clk 0:01:58]}  Bxf3 {[%clk 0:02:45]} 9. Bxf3 {[%clk 0:01:59]}  Ne5 {[%clk 0:02:46]}
10. Qf4 {[%clk 0:01:59]}  Nxf3+ {[%clk 0:02:46]} 11. Qxf3 {[%clk 0:01:58]}  e6 {[%clk 0:02:44]} 12. O-O {[%clk 0:01:58]}  Be7 {[%clk 0:02:43]}
13. b3 {[%clk 0:01:36]}  O-O {[%clk 0:02:37]} 14. Bb2 {[%clk 0:01:33]}  Rfd8 {[%clk 0:02:33]} 15. Ne4 {[%clk 0:01:19]}  Nxe4 {[%clk 0:02:10]}
16. Qxe4 {[%clk 0:01:19]}  a5 {[%clk 0:02:08]} 17. Qg4 {[%clk 0:01:20]}  Bf8 {[%clk 0:02:08]} 18. Rab1 {[%clk 0:01:07]}  Qb4 {[%clk 0:02:06]}
19. Qc4 {[%clk 0:00:55]}  Rd5 {[%clk 0:01:43]} 20. Rfc1 {[%clk 0:00:27]}  h5 {[%clk 0:01:33]} 21. h4 {[%clk 0:00:23]}  Qd6 {[%clk 0:01:20]}
22. Qe4 {[%clk 0:00:22]}  a4 {[%clk 0:01:06]} 23. bxa4 {[%clk 0:00:23]}  Rda5 {[%clk 0:00:43]} 24. Rc4 {[%clk 0:00:24]}  Qd5 {[%clk 0:00:37]}
25. Bc3 {[%clk 0:00:25]}  Qxe4 {[%clk 0:00:26]} 26. Rxe4 {[%clk 0:00:27]}  Rxa4 {[%clk 0:00:27]} 27. Rxa4 {[%clk 0:00:28]}  Rxa4 {[%clk 0:00:28]}
28. Rxb7 {[%clk 0:00:29]}  Rxa2 {[%clk 0:00:27]} 29. Rb8 {[%clk 0:00:25]}  c5 {[%clk 0:00:28]} 30. Be5 {[%clk 0:00:25]}  Ra6 {[%clk 0:00:29]}
31. Rc8 {[%clk 0:00:17]}  f6 {[%clk 0:00:30]} 32. Bf4 {[%clk 0:00:17]}  Kf7 {[%clk 0:00:24]} 33. Rc7+ {[%clk 0:00:17]}  Kg6 {[%clk 0:00:21]}
34. Kg2 {[%clk 0:00:19]}  Ra2 {[%clk 0:00:15]} 35. Kf3 {[%clk 0:00:20]}  e5 {[%clk 0:00:10]} 36. Be3 {[%clk 0:00:21]}  Rc2 {[%clk 0:00:11]}
37. Rc8 {[%clk 0:00:16]}  Be7 {[%clk 0:00:11]} 38. Rc7 {[%clk 0:00:17]}  Kf7 {[%clk 0:00:12]} 39. Kg2 {[%clk 0:00:13]}  Ke6 {[%clk 0:00:12]}
40. Kf3 {[%clk 0:00:13]}  g6 {[%clk 0:00:10]} 41. Rc6+ {[%clk 0:00:13]}  Bd6 {[%clk 0:00:05]} 42. Rc8 {[%clk 0:00:11]}  Be7 {[%clk 0:00:10]}
43. Rc6+ {[%clk 0:00:12]}  Kd7 {[%clk 0:00:10]} 44. Ra6 {[%clk 0:00:13]}  c4 {[%clk 0:00:10]} 45. Ra7+ {[%clk 0:00:13]}  Ke6 {[%clk 0:00:11]}
46. Ra6+ {[%clk 0:00:14]}  Kf5 {[%clk 0:00:11]} 47. dxc4 {[%clk 0:00:07]}  Rxc4 {[%clk 0:00:11]} 48. Ra2 {[%clk 0:00:07]}  g5 {[%clk 0:00:08]}
49. hxg5 {[%clk 0:00:08]}  fxg5 {[%clk 0:00:09]} 50. Kg2 {[%clk 0:00:09]}  h4 {[%clk 0:00:08]} 51. gxh4 {[%clk 0:00:09]}  gxh4 {[%clk 0:00:09]}
52. Kh3 {[%clk 0:00:10]}  Bf6 {[%clk 0:00:10]} 53. Rd2 {[%clk 0:00:08]}  Rc1 {[%clk 0:00:11]} 54. Ra2 {[%clk 0:00:08]}  Rh1+ {[%clk 0:00:11]}
55. Kg2 {[%clk 0:00:09]}  Re1 {[%clk 0:00:12]} 56. Kh3 {[%clk 0:00:10]}  Be7 {[%clk 0:00:09]} 57. Bb6 {[%clk 0:00:11]}  Bg5 {[%clk 0:00:09]}
58. Bc5 {[%clk 0:00:11]}  Rh1+ {[%clk 0:00:09]} 59. Kg2 {[%clk 0:00:13]}  Rc1 {[%clk 0:00:10]} 60. Be3 {[%clk 0:00:11]}  Bxe3 {[%clk 0:00:08]}
61. fxe3 {[%clk 0:00:12]}  Ke4 {[%clk 0:00:09]} 62. Kf2 {[%clk 0:00:10]}  h3 {[%clk 0:00:10]} 63. Ra4+ {[%clk 0:00:11]}  Kf5 {[%clk 0:00:10]}
64. Rh4 {[%clk 0:00:12]}  Rh1 {[%clk 0:00:11]} 65. Kg3 {[%clk 0:00:12]}  Re1 {[%clk 0:00:06]} 66. Kf2 {[%clk 0:00:09]}  Rh1 {[%clk 0:00:07]}
67. Kg3 {[%clk 0:00:10]}  Rg1+ {[%clk 0:00:05]} 68. Kf2 {[%clk 0:00:07]}  Rg2+ {[%clk 0:00:07]} 69. Kf3 {[%clk 0:00:07]}  Rh2 {[%clk 0:00:06]}
70. Rh8 {[%clk 0:00:04]}  e4+ {[%clk 0:00:07]} 71. Kg3 {[%clk 0:00:05]}  Rxe2 {[%clk 0:00:08]} 72. Kxh3 {[%clk 0:00:04]}  Rxe3+ {[%clk 0:00:10]}
73. Kg2 {[%clk 0:00:06]}  Re2+ {[%clk 0:00:06]} 74. Kg3 {[%clk 0:00:05]}  Ke5 {[%clk 0:00:07]} 75. Rd8 {[%clk 0:00:06]}  Ra2 {[%clk 0:00:08]}
76. Rd7 {[%clk 0:00:04]}  Rb2 {[%clk 0:00:08]} 77. Rd8 {[%clk 0:00:06]}  Ke6 {[%clk 0:00:08]} 78. Kf4 {[%clk 0:00:07]} 1/2-1/2

[Event "2026 Biel Blitz Open"]
[Site "Biel, CH"]
[Date "2026.07.19"]
[Round "10"]
[White "Shukhman, Anna"]
[Black "Arjun Kalyan"]
[Result "1-0"]
[Board "3"]
[TimeControl "180+2"]
[WhiteFideId "54180058"]
[BlackFideId "35018701"]
[WhiteElo "2392"]
[BlackElo "2451"]
[WhiteTitle "WGM"]
[BlackTitle "GM"]
[WhiteClock "0:00:11"]
[BlackClock "0:00:04"]
[Variant "Standard"]
[EndDate "2026.07.19"]
[EndTime "14:59:56"]

1. e4 {[%clk 0:03:03]}  e5 {[%clk 0:03:03]} 2. Nf3 {[%clk 0:03:04]}  Nc6 {[%clk 0:03:04]} 3. Nc3 {[%clk 0:03:05]}  Nf6 {[%clk 0:03:05]}
4. Nd5 {[%clk 0:03:07]}  Be7 {[%clk 0:02:59]} 5. Bd3 {[%clk 0:03:06]}  O-O {[%clk 0:02:54]} 6. c3 {[%clk 0:03:07]}  d6 {[%clk 0:02:52]}
7. Bc2 {[%clk 0:03:02]}  Be6 {[%clk 0:02:33]} 8. Nxe7+ {[%clk 0:03:02]}  Nxe7 {[%clk 0:02:32]} 9. O-O {[%clk 0:03:00]}  Ng6 {[%clk 0:02:31]}
10. h3 {[%clk 0:02:47]}  h6 {[%clk 0:02:28]} 11. d4 {[%clk 0:02:47]}  Qe7 {[%clk 0:02:27]} 12. Qe2 {[%clk 0:02:17]}  Nh7 {[%clk 0:02:23]}
13. dxe5 {[%clk 0:02:12]}  dxe5 {[%clk 0:02:23]} 14. Bb3 {[%clk 0:02:14]}  c6 {[%clk 0:02:04]} 15. Be3 {[%clk 0:02:12]}  Qf6 {[%clk 0:01:51]}
16. Rfd1 {[%clk 0:02:05]}  Bxb3 {[%clk 0:01:29]} 17. axb3 {[%clk 0:02:06]}  a6 {[%clk 0:01:27]} 18. Rd7 {[%clk 0:02:01]}  b5 {[%clk 0:01:23]}
19. Rad1 {[%clk 0:01:55]}  Rfd8 {[%clk 0:01:23]} 20. Qd3 {[%clk 0:01:53]}  Rxd7 {[%clk 0:01:21]} 21. Qxd7 {[%clk 0:01:53]}  Nhf8 {[%clk 0:01:17]}
22. Qb7 {[%clk 0:01:53]}  Rd8 {[%clk 0:01:18]} 23. Rxd8 {[%clk 0:01:39]}  Qxd8 {[%clk 0:01:19]} 24. Qxc6 {[%clk 0:01:39]}  Qd1+ {[%clk 0:01:19]}
25. Kh2 {[%clk 0:01:40]}  Qxb3 {[%clk 0:01:20]} 26. Qxa6 {[%clk 0:01:35]}  Qxb2 {[%clk 0:01:20]} 27. Qc6 {[%clk 0:01:19]}  Qe2 {[%clk 0:01:05]}
28. h4 {[%clk 0:01:15]}  h5 {[%clk 0:00:45]} 29. Qd5 {[%clk 0:01:09]}  Ne6 {[%clk 0:00:19]} 30. Nxe5 {[%clk 0:01:01]}  Nxe5 {[%clk 0:00:18]}
31. Qxe5 {[%clk 0:01:01]}  Qg4 {[%clk 0:00:15]} 32. g3 {[%clk 0:01:02]}  Qe2 {[%clk 0:00:14]} 33. Kg2 {[%clk 0:01:00]}  Qc4 {[%clk 0:00:14]}
34. Qd5 {[%clk 0:00:58]}  Qxc3 {[%clk 0:00:14]} 35. Qxb5 {[%clk 0:00:58]}  g6 {[%clk 0:00:11]} 36. Qd5 {[%clk 0:00:52]}  Qf6 {[%clk 0:00:09]}
37. Qd6 {[%clk 0:00:38]}  Qc3 {[%clk 0:00:09]} 38. Bf4 {[%clk 0:00:34]}  Qc4 {[%clk 0:00:09]} 39. Qd5 {[%clk 0:00:32]}  Nxf4+ {[%clk 0:00:09]}
40. gxf4 {[%clk 0:00:33]}  Qe2 {[%clk 0:00:10]} 41. Qd8+ {[%clk 0:00:30]}  Kh7 {[%clk 0:00:10]} 42. Qe7 {[%clk 0:00:14]}  Qg4+ {[%clk 0:00:11]}
43. Kf1 {[%clk 0:00:15]}  Qxf4 {[%clk 0:00:12]} 44. Ke2 {[%clk 0:00:12]}  Kg7 {[%clk 0:00:12]} 45. f3 {[%clk 0:00:12]}  Qh2+ {[%clk 0:00:13]}
46. Ke3 {[%clk 0:00:12]}  Qb2 {[%clk 0:00:13]} 47. Qc5 {[%clk 0:00:11]}  Qb3+ {[%clk 0:00:09]} 48. Kf4 {[%clk 0:00:11]}  Qe6 {[%clk 0:00:08]}
49. Qe5+ {[%clk 0:00:12]}  Qf6+ {[%clk 0:00:09]} 50. Qxf6+ {[%clk 0:00:10]}  Kxf6 {[%clk 0:00:11]} 51. e5+ {[%clk 0:00:11]}  Ke6 {[%clk 0:00:12]}
52. Ke4 {[%clk 0:00:12]}  f6 {[%clk 0:00:06]} 53. f4 {[%clk 0:00:12]}  fxe5 {[%clk 0:00:05]} 54. fxe5 {[%clk 0:00:13]}  Ke7 {[%clk 0:00:06]}
55. Kd5 {[%clk 0:00:08]}  Kd7 {[%clk 0:00:05]} 56. e6+ {[%clk 0:00:10]}  Ke7 {[%clk 0:00:06]} 57. Ke5 {[%clk 0:00:11]}  g5 {[%clk 0:00:04]}
58. hxg5 {[%clk 0:00:10]}  h4 {[%clk 0:00:06]} 59. g6 {[%clk 0:00:09]}  h3 {[%clk 0:00:03]} 60. g7 {[%clk 0:00:10]}  h2 {[%clk 0:00:04]}
61. g8=Q {[%clk 0:00:11]} 1-0